bitfinex/quotes_SOLUSD_20240717
["timestamp","ask_amount","ask_price","bid_price","bid_amount"]
[1721178539173,21.6245,163.12,163.06,1.22632395]
[1721178539579,23.15727274,163.12,163.06,1.22632395]
[1721178540305,21.6245,163.12,163.07,1.22622317]
[1721178540483,21.6245,163.12,163.08,1.22608865]
[1721178540685,21.6245,163.12,163.09,1.22608865]
[1721178541008,21.6245,163.12,163.07,1.22608883]
[1721178541191,21.6245,163.12,163.05,10.0]
[1721178541392,21.6245,163.12,163.06,1.22611518]
[1721178541597,27.7552,163.12,163.06,1.22611518]
[1721178541790,21.6245,163.12,163.06,1.22611518]
[1721178542380,6.1309,163.11,163.03,1.22635459]
[1721178542607,21.6245,163.12,163.05,10.0]
[1721178542919,21.6245,163.12,163.06,1.22614006]
[1721178543602,21.6245,163.12,163.06,11.22614006]
[1721178543804,21.6245,163.12,163.06,10.0]
[1721178544300,21.6245,163.12,163.06,25.3314]
[1721178544476,21.6245,163.12,163.05,0.17]
[1721178544680,21.6245,163.12,163.06,10.0]
[1721178544901,21.6245,163.12,163.05,0.17]
[1721178545105,6.1308,163.11,163.07,1.22611622]
[1721178545305,21.6245,163.12,163.08,1.22622137]
[1721178545601,21.6245,163.12,163.07,1.22611038]
[1721178545903,27.7549,163.12,163.04,10.0]
[1721178546106,27.7549,163.12,163.05,1.22617641]
[1721178546107,6.1308,163.11,163.05,1.22617641]
[1721178546404,21.6245,163.12,163.06,10.0]
[1721178547001,21.6245,163.12,163.07,0.17]
[1721178547386,21.6245,163.12,163.06,10.0]
[1721178547702,21.6245,163.12,163.06,16.1323]
[1721178547917,21.6245,163.12,163.07,1.22608727]
[1721178548098,21.6245,163.12,163.08,1.22608727]
[1721178548296,21.6245,163.12,163.06,10.0]
[1721178548501,21.6245,163.12,163.07,0.17]
[1721178549805,1.5325768,163.21,163.14,10.0]
[1721178550011,0.8402016,163.22,163.16,10.0]
[1721178550215,0.8402016,163.22,163.17,1.22534979]
[1721178550423,0.8402016,163.22,163.18,1.22530147]
[1721178550606,0.8402016,163.22,163.18,1.22530656]
[1721178550809,0.8402016,163.22,163.16,10.0]
[1721178551004,0.8402016,163.22,163.17,0.17]
[1721178551611,0.8402016,163.22,163.14,10.0]
[1721178551911,0.8402016,163.22,163.16,10.0]
[1721178552211,0.8402016,163.22,163.11,10.0]
[1721178552212,2.3718223,163.22,163.11,10.0]
[1721178552403,2.3718223,163.22,163.12,0.34]
[1721178552600,6.1273,163.21,163.13,25.3243]
[1721178552917,8.49909491,163.22,163.14,10.0]
[1721178553405,6.1273,163.21,163.12,16.3001]
[1721178553712,0.8402016,163.22,163.15,16.1291]
[1721178553896,0.8402016,163.22,163.16,0.17]
[1721178554509,0.8402016,163.22,163.17,10.0]
[1721178554704,0.8402016,163.22,163.18,1.2252599]
[1721178555210,0.8402016,163.22,163.18,11.2252599]
[1721178555524,0.8402016,163.22,163.16,16.2986]
[1721178556021,0.8402016,163.22,163.18,10.0]
[1721178556206,0.8402016,163.22,163.19,1.22519535]
[1721178556411,0.8402016,163.22,163.18,10.0]
[1721178556711,0.8402016,163.22,163.16,16.2989]
[1721178556918,0.8402016,163.22,163.16,16.2988]
[1721178557124,0.8402016,163.22,163.2,10.0]
[1721178557300,0.8402016,163.22,163.21,36.1120431]
[1721178557501,0.8402016,163.22,163.21,50.2046]
[1721178558199,0.6602016,163.22,163.21,50.2046]
[1721178558440,0.6602016,163.22,163.21,58.45078734]
[1721178558595,1.6e-06,163.22,163.21,77.49949212]
[1721178558801,1.6e-06,163.22,163.21,137.64404779]
[1721178559201,2.36184194,163.34,163.29,59.8541]
[1721178559405,2.36184194,163.34,163.29,88.7741]
[1721178559599,2.36184194,163.34,163.29,70.3541]
[1721178559918,2.36184194,163.34,163.29,21.224427]
[1721178560117,2.36184194,163.34,163.29,10.0]
[1721178560321,2.36184194,163.34,163.27,11.22454423]
[1721178560505,2.36184194,163.34,163.29,10.0]
[1721178560909,2.36184194,163.34,163.29,11.22457523]
[1721178561107,2.36184194,163.34,163.26,10.0]
[1721178561108,1.53063921,163.33,163.26,10.0]
[1721178561295,6.1231,163.32,163.27,1.22474014]
[1721178561495,18.51396223,163.3,163.23,1.22476978]
[1721178561698,18.51396223,163.3,163.24,1.22487163]
[1721178561905,16.983,163.3,163.24,1.22487163]
[1721178562309,16.983,163.3,163.24,7.35077163]
[1721178562531,16.983,163.3,163.25,10.0]
[1721178562819,1.53092576,163.29,163.22,10.0]
[1721178563008,1.53092576,163.29,163.21,10.0]
[1721178563009,18.51424686,163.3,163.23,1.22499749]
[1721178563210,18.51424686,163.3,163.24,10.0]
[1721178563211,16.983,163.3,163.24,10.0]
[1721178563418,23.107,163.3,163.24,1.22469274]
[1721178563741,16.983,163.3,163.25,1.22486948]
[1721178564102,7.65519466,163.29,163.2,16.1272]
[1721178564406,6.1245,163.28,163.2,10.0]
[1721178564615,6.1245,163.28,163.21,1.22503017]
[1721178564818,1.53132885,163.27,163.21,1.22503017]
[1721178565014,1.53136782,163.28,163.21,1.22503017]
[1721178565211,16.983,163.3,163.23,10.0]
[1721178565408,1.5311068,163.29,163.2,10.0]
[1721178565817,6.1245,163.28,163.21,1.22504239]
[1721178566018,1.53128934,163.28,163.21,1.22504239]
[1721178566211,1.53128934,163.29,163.21,16.54234239]
[1721178566406,16.983,163.3,163.23,15.3151]
[1721178566599,16.983,163.3,163.24,1.22487027]
[1721178566922,16.983,163.3,163.24,11.22487027]
[1721178567129,6.1249,163.27,163.25,1.22485294]
[1721178567426,16.983,163.3,163.23,1.22496932]
[1721178567601,16.983,163.3,163.24,1.22491708]
[1721178567801,1.53114664,163.29,163.22,1.22491731]
[1721178568006,6.0771,163.25,163.16,10.0]
[1721178568208,6.1277,163.2,163.13,10.0]
[1721178568609,1.53168093,163.24,163.13,10.0]
[1721178568803,28.92,163.22,163.09,20.0]
[1721178569002,6.1282,163.18,163.1,30.0]
[1721178569199,1.53224947,163.17,163.1,30.0]
[1721178569401,16.4444,163.16,163.09,10.0]
[1721178569620,7.60952985,163.15,163.05,20.0]
[1721178569825,1.53263488,163.14,163.06,1.2261079]
[1721178570007,1.53261615,163.14,163.05,20.0]
[1721178570413,1.53261615,163.14,163.06,1.22607706]
[1721178570618,1.53261615,163.14,163.06,1.22622547]
[1721178570818,1.53261615,163.14,163.07,6.1322]
[1721178571007,6.0771,163.15,163.1,10.0]
[1721178571207,6.0771,163.15,163.11,1.22581548]
[1721178571424,16.4444,163.16,163.12,10.0]
[1721178571733,6.0771,163.19,163.13,1.22570345]
[1721178571906,6.0771,163.19,163.15,10.0]
[1721178572115,7.60894845,163.24,163.16,11.22547876]
[1721178572519,7.60894845,163.24,163.16,17.35437876]
[1721178572716,7.60894845,163.24,163.16,6.1289]
[1721178572953,7.60894845,163.24,163.17,0.69406908]
[1721178573143,7.60894845,163.24,163.18,0.69407077]
[1721178573430,6.0771,163.24,163.18,0.69407077]
[1721178573807,6.0771,163.24,163.19,10.0]
[1721178574014,6.0771,163.24,163.2,0.69349083]
[1721178574216,6.0771,163.24,163.21,0.69355861]
[1721178574408,16.4444,163.25,163.22,10.0]
[1721178574605,8.16210656,163.29,163.23,0.69308319]
[1721178574847,8.16210656,163.29,163.24,0.69283571]
[1721178574848,6.6304,163.29,163.24,0.69283571]
[1721178575014,6.6304,163.29,163.25,6.1255]
[1721178575330,33.1044,163.3,163.26,16.1251]
[1721178575537,33.1044,163.3,163.26,10.0]
[1721178575735,33.1044,163.3,163.25,25.3135]
[1721178576422,33.1044,163.3,163.26,0.69203944]
[1721178576628,33.1044,163.3,163.27,0.69203944]
[1721178576842,33.1044,163.3,163.26,6.1251]
[1721178577210,33.1044,163.3,163.25,31.439]
[1721178577823,33.1044,163.3,163.24,10.0]
[1721178578227,33.1044,163.3,163.25,10.6922077]
[1721178578423,33.1044,163.3,163.27,15.312]
[1721178578628,33.1044,163.3,163.28,0.69202083]
[1721178579017,33.1044,163.3,163.23,10.17]
[1721178579341,6.1246,163.28,163.21,10.0]
[1721178579515,1.53101135,163.29,163.21,10.0]
[1721178579516,7.65501135,163.29,163.21,10.0]
[1721178579711,1.53101135,163.29,163.21,10.0]
[1721178580033,6.1248,163.27,163.21,10.0]
[1721178580225,6.1244,163.28,163.21,0.69292984]
[1721178580443,33.1044,163.3,163.22,0.69311631]
[1721178580444,7.65610887,163.27,163.22,0.69311631]
[1721178580637,1.53139776,163.29,163.22,0.69311631]
[1721178580840,6.1248,163.27,163.22,0.69311631]
[1721178581137,6.1245,163.28,163.22,0.69311631]
[1721178581443,1.5313996,163.27,163.2,0.69333405]
[1721178581626,1.5313996,163.27,163.21,0.69333405]
[1721178582014,33.1044,163.3,163.17,15.3213]
[1721178582015,1.53140207,163.26,163.17,10.0]
[1721178582309,33.1044,163.3,163.17,10.0]
[1721178582310,6.2271,163.24,163.18,0.69367727]
[1721178582745,1.53168808,163.23,163.18,0.69367727]
[1721178583039,1.53168808,163.23,163.14,25.3242]
[1721178583238,1.53168808,163.23,163.12,10.0]
[1721178583419,6.1275,163.2,163.13,0.6948955]
[1721178583617,7.65908286,163.21,163.13,0.6948955]
[1721178583940,6.1279,163.19,163.13,0.6948955]
[1721178584234,1.5321714,163.19,163.13,0.6948955]
[1721178584441,1.53215895,163.21,163.14,6.1296]
[1721178584623,15.7262,163.22,163.15,10.69434797]
[1721178584829,1.53182263,163.21,163.15,0.69434797]
[1721178585041,17.25826149,163.22,163.15,0.69434797]
[1721178585216,15.7262,163.22,163.15,10.69434797]
[1721178585533,15.7262,163.22,163.15,0.69434797]
[1721178585734,1.53184244,163.21,163.13,10.0]
[1721178585948,1.5320613,163.2,163.14,0.69492214]
[1721178586111,7.6597613,163.2,163.14,0.69492214]
[1721178586543,1.53213364,163.21,163.15,0.69509575]
[1721178586841,7.65963249,163.2,163.15,0.69509575]
[1721178587141,7.65963249,163.2,163.13,0.69486322]
[1721178587437,1.53213633,163.21,163.14,15.324]
[1721178587630,1.53213633,163.21,163.15,0.69468394]
[1721178587829,15.7262,163.22,163.16,6.1289]
[1721178588036,15.7262,163.22,163.17,10.69434112]
[1721178588238,15.7262,163.22,163.19,6.1277]
[1721178588425,1.53181921,163.27,163.22,15.316]
[1721178588426,15.6084,163.27,163.22,15.316]
[1721178588618,15.6084,163.27,163.23,0.69296614]
[1721178588816,1.45073829,163.26,163.17,10.0]
[1721178589024,1.45073829,163.26,163.18,0.69399732]
[1721178589331,1.53156825,163.26,163.18,6.82209732]
[1721178589634,1.53156825,163.26,163.19,10.0]
[1721178589831,1.53156825,163.26,163.2,0.69349334]
[1721178590044,7.65676825,163.26,163.21,0.69349401]
[1721178590342,1.53156825,163.26,163.17,10.0]
[1721178590519,17.13976265,163.27,163.2,10.0]
[1721178590722,15.6084,163.27,163.2,10.0]
[1721178591045,15.6084,163.27,163.2,6.1273]
[1721178591247,15.6084,163.27,163.2,10.0]
[1721178591846,1.5313632,163.26,163.17,21.4487]
[1721178592047,7.6568632,163.26,163.17,21.4487]
[1721178592244,6.1265,163.23,163.18,10.0]
[1721178592448,1.53176962,163.25,163.16,10.0]
[1721178592637,7.65726962,163.25,163.17,10.0]
[1721178592825,7.65726962,163.25,163.16,16.1289]
[1721178593030,1.53176962,163.25,163.16,10.0]
[1721178593225,6.1267,163.22,163.14,10.0]
[1721178593523,6.1263,163.23,163.14,16.1296]
[1721178593841,1.53182837,163.25,163.14,16.1293]
[1721178594050,6.1268,163.22,163.14,10.0]
[1721178594640,7.65742837,163.25,163.16,6.1288]
[1721178595352,6.1263,163.23,163.15,10.0]
[1721178595652,6.1271,163.21,163.13,25.3245]
[1721178595957,1.53198821,163.25,163.13,25.3245]
[1721178596122,6.1267,163.22,163.13,31.4545]
[1721178596327,7.65899774,163.21,163.13,15.3245]
[1721178596523,1.53199063,163.2,163.13,15.3245]
[1721178596835,1.53199063,163.2,163.12,10.0]
[1721178597039,6.3597,163.18,163.1,16.1309]
[1721178597248,6.3597,163.18,163.09,10.0]
[1721178597249,1.53222622,163.17,163.09,10.0]
[1721178597454,6.1292,163.16,163.09,10.0]
[1721178598034,1.53222622,163.17,163.09,10.0]
[1721178598227,1.53222622,163.17,163.09,20.0]
[1721178598637,7.66082622,163.17,163.09,20.0]
[1721178598835,22.5289,163.18,163.09,20.0]
[1721178599157,22.5289,163.18,163.11,10.0]
[1721178599449,1.53218983,163.17,163.09,35.3284]
[1721178599631,1.53218983,163.17,163.1,6.1311]
[1721178599938,8.03450747,163.22,163.12,16.1301]
[1721178600137,6.1273,163.21,163.13,6.13]
[1721178600335,6.5022,163.22,163.15,6.1292]
[1721178600526,6.5022,163.22,163.17,6.1285]
[1721178600730,6.5022,163.22,163.16,16.1288]
[1721178600933,6.5022,163.22,163.16,10.0]
[1721178601132,6.5022,163.22,163.17,15.3207]
[1721178601357,6.5022,163.22,163.16,16.1288]
[1721178601530,6.1271,163.21,163.14,15.4939]
[1721178601732,6.1271,163.21,163.14,0.17]
[1721178601933,8.03384728,163.22,163.14,26.1293]
[1721178602133,8.03384728,163.22,163.13,0.17]
[1721178602440,6.5022,163.22,163.15,10.0]
[1721178602749,1.53180545,163.21,163.14,15.3235]
[1721178602968,8.03400545,163.22,163.15,6.1292]
[1721178603154,14.16080545,163.22,163.14,15.3235]
[1721178603335,6.5022,163.22,163.17,6.1282]
[1721178603532,6.5022,163.22,163.19,10.0]
[1721178603859,6.3082,163.27,163.21,6.1267]
[1721178604058,6.3082,163.27,163.2,15.3179]
[1721178604248,12.433,163.27,163.19,6.1277]
[1721178604447,12.4333,163.27,163.18,6.1281]
[1721178604752,6.1252,163.26,163.18,6.1281]
[1721178604958,7.83960948,163.27,163.19,25.3189]
[1721178605156,7.83960948,163.27,163.21,6.127]
[1721178605332,16.0644,163.28,163.25,6.1252]
[1721178606236,16.0644,163.28,163.24,21.4403]
[1721178606637,16.0644,163.28,163.22,20.0]
[1721178606939,16.0644,163.28,163.23,6.1262]
[1721178607142,16.0644,163.28,163.22,26.1266]
[1721178607348,16.0644,163.28,163.22,20.0]
[1721178607532,16.0644,163.28,163.23,15.3151]
[1721178607735,16.0644,163.28,163.24,10.0]
[1721178607988,16.0644,163.28,163.23,21.441]
[1721178608166,16.0644,163.28,163.25,25.3135]
[1721178608333,16.983,163.3,163.27,6.1247]
[1721178608535,16.983,163.3,163.29,16.124]
[1721178608849,16.983,163.3,163.29,34.714]
[1721178609053,16.983,163.3,163.29,34.884]
[1721178609259,16.983,163.3,163.29,16.464]
[1721178609438,16.983,163.3,163.29,16.294]
[1721178609637,16.983,163.3,163.29,16.464]
[1721178610368,16.983,163.3,163.29,34.884]
[1721178610538,16.983,163.3,163.29,36.3006532]
[1721178611547,16.983,163.3,163.29,56.3006532]
[1721178611750,16.983,163.3,163.29,16.124]
[1721178611949,16.983,163.3,163.29,34.544]
[1721178612482,16.983,163.3,163.29,54.544]
[1721178612842,16.983,163.3,163.29,34.544]
[1721178613042,16.983,163.3,163.29,34.884]
[1721178613469,16.983,163.3,163.29,16.124]
[1721178614464,16.983,163.3,163.29,34.544]
[1721178614847,16.983,163.3,163.29,34.884]
[1721178615048,16.983,163.3,163.29,54.884]
[1721178615465,16.803,163.3,163.29,56.3006532]
[1721178615665,16.803,163.3,163.29,86.3006532]
[1721178616288,16.803,163.3,163.29,66.124]
[1721178616648,16.803,163.3,163.29,46.124]
[1721178617156,16.803,163.3,163.29,16.124]
[1721178617560,16.803,163.3,163.29,34.544]
[1721178617959,16.803,163.3,163.29,35.9606532]
[1721178618170,16.303,163.3,163.29,85.9606532]
[1721178618380,16.303,163.3,163.29,86.3006532]
[1721178618754,16.303,163.3,163.29,85.9606532]
[1721178618948,16.303,163.3,163.29,66.124]
[1721178619257,16.303,163.3,163.29,36.124]
[1721178619959,16.303,163.3,163.29,16.124]
[1721178620147,16.303,163.3,163.29,16.294]
[1721178621452,16.303,163.3,163.29,16.464]
[1721178621665,16.303,163.3,163.29,16.294]
[1721178622472,16.303,163.3,163.29,35.9606532]
[1721178622781,2.36184194,163.34,163.3,49.8528]
[1721178623015,2.36184194,163.34,163.3,51.26936644]
[1721178623181,2.36184194,163.34,163.33,72.0417]
[1721178623360,2.36184194,163.34,163.33,104.5117]
[1721178623765,2.36184194,163.34,163.33,104.6817]
[1721178624271,2.36184194,163.34,163.33,123.1017]
[1721178624470,2.36184194,163.34,163.33,104.6817]
[1721178624671,2.36184194,163.34,163.33,41.4289]
[1721178624990,2.36184194,163.34,163.33,21.4289]
[1721178625294,2.36184194,163.34,163.31,40.6159]
[1721178625295,2.36184194,163.34,163.31,10.0]
[1721178625462,2.36184194,163.34,163.32,6.1229]
[1721178625662,2.36184194,163.34,163.31,10.0]
[1721178626187,2.36184194,163.34,163.32,6.1228]
[1721178626364,2.36184194,163.34,163.33,15.3064]
[1721178626971,2.36184194,163.34,163.32,6.1229]
[1721178627877,2.36184194,163.34,163.33,6.1225]
[1721178629074,2.36184194,163.34,163.33,16.1225]
[1721178629488,2.36184194,163.34,163.33,26.4625]
[1721178629721,2.36184194,163.34,163.33,16.4625]
[1721178629885,2.36184194,163.34,163.33,26.2925]
[1721178630086,2.36184194,163.34,163.33,26.1225]
[1721178630785,2.36184194,163.34,163.33,44.5425]
[1721178630987,2.36184194,163.34,163.33,26.4625]
[1721178631514,4.194e-05,163.34,163.33,44.8825]
[1721178634210,4.194e-05,163.34,163.33,26.4625]
[1721178636415,4.194e-05,163.34,163.33,44.8825]
[1721178636794,4.194e-05,163.34,163.33,96.29880625]
[1721178636986,7.54e-06,163.38,163.37,90.4489]
[1721178637184,22.25992549,163.5,163.37,151.39090062]
[1721178637389,22.25992549,163.5,163.49,21.4079]
[1721178637618,22.25992549,163.5,163.49,15.2914]
[1721178637800,22.25992549,163.5,163.41,50.89]
[1721178637801,22.25992549,163.5,163.38,8.47191395]
[1721178638012,22.25992549,163.5,163.42,15.2971]
[1721178638013,1.52932631,163.49,163.42,15.2971]
[1721178638205,22.25992549,163.5,163.42,25.2971]
[1721178638407,22.25992549,163.5,163.44,6.1181]
[1721178638709,22.25992549,163.5,163.44,10.0]
[1721178638917,22.25992549,163.5,163.46,6.1176]
[1721178639090,22.25992549,163.5,163.45,6.118]
[1721178639294,1.52901543,163.49,163.43,15.2962]
[1721178639495,7.64638068,163.48,163.39,6.12]
[1721178639693,1.52938068,163.48,163.46,6.1176]
[1721178640018,1.52913971,163.47,163.39,16.12]
[1721178640238,6.1185,163.44,163.38,10.0]
[1721178640398,21.637,163.45,163.34,10.0]
[1721178640716,1.52977433,163.44,163.34,10.0]
[1721178641224,1.52977433,163.44,163.27,16.2168]
[1721178641225,21.637,163.45,163.4,10.0]
[1721178641515,21.637,163.45,163.39,6.1201]
[1721178641702,21.637,163.45,163.37,20.0]
[1721178641903,21.637,163.45,163.39,10.0]
[1721178642121,21.637,163.45,163.41,6.1192]
[1721178642292,21.637,163.45,163.44,15.2961]
[1721178642499,6.0609,163.45,163.43,10.0]
[1721178642822,21.68452549,163.5,163.45,25.295]
[1721178643037,21.68452549,163.5,163.45,10.0]
[1721178643315,1.52909828,163.49,163.42,10.0]
[1721178643501,21.68452549,163.5,163.46,6.1173]
[1721178643701,21.68452549,163.5,163.45,15.2948]
[1721178643908,21.68452549,163.5,163.42,16.1191]
[1721178644301,21.68452549,163.5,163.46,6.1175]
[1721178644502,21.68452549,163.5,163.44,25.2956]
[1721178644503,21.68452549,163.5,163.44,15.2956]
[1721178644704,21.68452549,163.5,163.44,21.414]
[1721178644920,21.68452549,163.5,163.44,15.2956]
[1721178645830,21.68452549,163.5,163.42,20.0]
[1721178646123,21.68452549,163.5,163.4,15.2994]
[1721178646306,1.52928109,163.49,163.41,6.1193]
[1721178646505,1.5292876,163.49,163.4,15.2994]
[1721178646715,7.6459876,163.49,163.4,21.4193]
[1721178646936,1.52939407,163.49,163.41,10.0]
[1721178647225,21.68452549,163.5,163.45,6.1179]
[1721178647403,21.68452549,163.5,163.44,6.1184]
[1721178647598,21.68452549,163.5,163.43,15.2966]
[1721178647804,21.68452549,163.5,163.41,10.0]
[1721178648419,21.68452549,163.5,163.44,6.1184]
[1721178648611,21.68452549,163.5,163.43,10.0]
[1721178648812,21.68452549,163.5,163.44,6.1182]
[1721178649001,21.68452549,163.5,163.44,6.1183]
[1721178649621,21.68452549,163.5,163.43,16.1187]
[1721178649802,21.68452549,163.5,163.42,15.2976]
[1721178650007,21.68452549,163.5,163.42,21.4166]
[1721178650318,21.68452549,163.5,163.43,6.1187]
[1721178650927,1.52917526,163.49,163.41,10.0]
[1721178651249,21.68452549,163.5,163.45,10.0]
[1721178651524,21.68452549,163.5,163.45,15.2942]
[1721178651703,21.68452549,163.5,163.41,35.2982]
[1721178652111,21.68452549,163.5,163.44,6.1184]
[1721178652326,21.68452549,163.5,163.41,35.2982]
[1721178652616,21.68452549,163.5,163.46,6.1175]
[1721178652923,21.68452549,163.5,163.46,15.2935]
[1721178653310,21.68452549,163.5,163.42,25.2971]
[1721178653842,21.68452549,163.5,163.44,6.1181]
[1721178654050,21.68452549,163.5,163.45,21.413]
[1721178654216,21.68452549,163.5,163.45,15.295]
[1721178654545,0.03852549,163.5,163.47,15.2925]
[1721178654732,0.03852549,163.5,163.47,21.4098]
[1721178654935,0.03852549,163.5,163.43,50.5927]
[1721178654936,0.03852549,163.5,163.44,15.2959]
[1721178655129,15.5891,163.48,163.41,25.2988]
[1721178655319,15.5891,163.48,163.41,15.2988]
[1721178655521,15.5891,163.48,163.43,15.2961]
[1721178655739,15.5891,163.48,163.39,20.0]
[1721178655937,15.5891,163.48,163.35,30.608]
[1721178655938,6.1177,163.46,163.35,30.608]
[1721178656119,1.5298604,163.45,163.37,15.3025]
[1721178656322,1.5298604,163.45,163.38,6.1204]
[1721178656513,1.5298604,163.45,163.37,21.4235]
[1721178656919,15.4627,163.43,163.37,21.4235]
[1721178657121,7.6496151,163.42,163.33,6.1224]
[1721178657327,6.5687,163.36,163.28,15.3104]
[1721178657528,1.53066315,163.35,163.29,6.1238]
[1721178657723,1.53066315,163.35,163.3,6.1236]
[1721178658130,1.53066315,163.35,163.28,15.3104]
[1721178658526,1.53066315,163.35,163.28,21.4347]
[1721178659023,7.65246315,163.35,163.26,6.1248]
[1721178659442,1.53066315,163.35,163.27,6.1247]
[1721178660055,1.53066315,163.35,163.18,10.0]
[1721178660056,40.101,163.33,163.18,10.0]
[1721178660251,21.681,163.31,163.18,10.0]
[1721178660565,1.53139802,163.3,163.18,10.0]
[1721178660722,1.53141268,163.29,163.18,10.0]
[1721178661145,1.53141268,163.29,163.2,6.1273]
[1721178661333,26.07561268,163.29,163.2,6.1273]
[1721178661543,6.1245,163.28,163.19,21.447]
[1721178661729,1.53168912,163.27,163.19,21.447]
[1721178661922,18.42,163.29,163.19,21.447]
[1721178661923,1.53168958,163.26,163.2,6.1273]
[1721178662731,1.53168958,163.26,163.21,6.127]
[1721178663035,1.53168878,163.28,163.21,15.3168]
[1721178663235,1.53168878,163.28,163.23,6.126]
[1721178663431,1.53168878,163.28,163.21,21.4436]
[1721178663932,1.53168878,163.28,163.19,40.6382]
[1721178664140,1.53130861,163.27,163.19,30.6382]
[1721178664351,7.65518273,163.3,163.21,15.3176]
[1721178664670,1.53150017,163.29,163.23,15.3151]
[1721178664830,1.53150017,163.29,163.19,40.6382]
[1721178664831,23.21219282,163.31,163.21,20.0]
[1721178665024,21.681,163.31,163.24,30.6291]
[1721178665226,21.681,163.31,163.28,15.3108]
[1721178665631,21.681,163.31,163.3,6.1236]
[1721178665843,21.681,163.31,163.29,6.124]
[1721178666159,1.53104249,163.3,163.24,6.1257]
[1721178666356,1.53114559,163.29,163.18,20.0]
[1721178666523,1.53114559,163.29,163.18,10.0]
[1721178666729,1.53114559,163.29,163.15,30.6459]
[1721178666937,21.7103,163.27,163.17,21.4495]
[1721178667130,1.53171775,163.26,163.17,15.3213]
[1721178667331,1.53171775,163.26,163.14,16.1296]
[1721178667538,6.1259,163.25,163.16,6.1289]
[1721178667842,6.1348,163.23,163.13,40.6502]
[1721178668049,7.66656534,163.23,163.17,15.3208]
[1721178668230,1.5318252,163.22,163.13,40.6502]
[1721178668438,1.53184684,163.22,163.17,6.1282]
[1721178668664,6.1348,163.23,163.2,15.3179]
[1721178668864,1.53184566,163.22,163.16,21.4507]
[1721178669043,1.53184566,163.22,163.16,15.3218]
[1721178669246,6.1348,163.23,163.19,6.1276]
[1721178669559,1.53196928,163.22,163.18,15.3198]
[1721178669750,1.53196928,163.22,163.18,6.1281]
[1721178669934,6.1348,163.23,163.19,6.1276]
[1721178670454,1.53181768,163.22,163.17,21.4491]
[1721178670950,1.53181768,163.22,163.17,15.3208]
[1721178671137,7.66679019,163.23,163.17,15.3208]
[1721178671335,6.1348,163.23,163.19,6.1276]
[1721178671554,1.53182019,163.22,163.19,6.1277]
[1721178671943,6.1348,163.23,163.22,6.1267]
[1721178672163,6.1348,163.23,163.16,40.6429]
[1721178672359,6.1348,163.23,163.21,21.444]
[1721178672560,6.1348,163.23,163.21,15.317]
[1721178672759,6.1348,163.23,163.22,6.1267]
[1721178672961,15.5853,163.27,163.26,6.1251]
[1721178673163,6.0183,163.28,163.27,21.4368]
[1721178673357,16.3111,163.31,163.27,15.312]
[1721178673566,16.3111,163.31,163.29,15.3094]
[1721178673847,16.3111,163.31,163.3,6.1236]
[1721178674063,21.9472,163.37,163.31,15.3076]
[1721178674259,1.53050319,163.36,163.31,15.3076]
[1721178674653,1.53050319,163.36,163.31,21.4306]
[1721178674854,1.53050319,163.36,163.32,6.1228]
[1721178675050,1.53051153,163.36,163.28,25.3109]
[1721178675364,1.53072201,163.35,163.28,15.3109]
[1721178675566,1.53072201,163.35,163.3,6.1234]
[1721178675869,1.53072201,163.35,163.2,50.6364]
[1721178676080,1.53072201,163.35,163.26,6.1251]
[1721178676371,1.53072201,163.35,163.26,15.3121]
[1721178676372,19.95072201,163.35,163.26,15.3121]
[1721178676580,1.53072201,163.35,163.28,6.1241]
[1721178677071,1.53072201,163.35,163.26,15.3121]
[1721178677279,7.65262201,163.35,163.26,21.437]
[1721178677571,6.1229,163.32,163.23,21.4416]
[1721178677779,1.53114121,163.31,163.23,15.3155]